fUSD/lending_fUSD_20250623
["ID","MTS","AMOUNT","RATE_DAILY","PERIOD"]
[367259055,1750720276497,-1646.59,0.00022739,2]
[367259056,1750720276506,-2547.54,0.00022739,2]
[367259057,1750720276515,-490.0,0.00022739,2]
[367259058,1750720276524,-646.88,0.00022739,2]
[367259059,1750720276534,-977.81,0.00022739,2]
[367259060,1750720276544,-705.0,0.00022739,2]
[367259061,1750720276553,-784.56,0.00022739,2]
[367259062,1750720276563,-571.39,0.00022739,2]
[367259063,1750720276574,-1044.99,0.00022739,2]
[367259064,1750720276584,-707.98,0.00022739,2]
[367259065,1750720276593,-490.0,0.00022739,2]
[367259066,1750720276602,-758.21,0.00022739,2]
[367259067,1750720276611,-490.0,0.00022739,2]
[367259068,1750720276621,-24749.35,0.00022739,2]
[367259069,1750720276630,-490.0,0.00022739,2]
[367259070,1750720276640,-2686.176655,0.00022739,2]
[367259071,1750720276652,-961.66,0.00022739,2]
[367259072,1750720276661,-644.07,0.00022739,2]
[367259073,1750720276671,-548.09,0.00022739,2]
[367259074,1750720276680,-490.0,0.00022739,2]
[367259075,1750720276689,-1807.84,0.00022739,2]
[367259076,1750720276699,-1049.93,0.00022739,2]
[367259077,1750720276708,-490.0,0.00022739,2]
[367259078,1750720276718,-490.0,0.00022739,2]
[367259079,1750720276728,-1031.44,0.00022739,2]
[367259080,1750720276738,-719.14,0.00022739,2]
[367259081,1750720276748,-505.77,0.00022739,2]
[367259082,1750720276758,-905.31,0.00022739,2]
[367259083,1750720276767,-735.92,0.00022739,2]
[367259084,1750720276777,-629.84,0.00022739,2]
[367259085,1750720276786,-884.52,0.00022739,2]
[367259086,1750720276795,-781.37,0.00022739,2]
[367259087,1750720276806,-652.97,0.00022739,2]
[367259088,1750720276816,-1808.03,0.00022739,2]
[367259089,1750720276825,-490.0,0.00022739,2]
[367259090,1750720276834,-150.0,0.00022745,2]
[367259091,1750720276844,-21159.18941329,0.00022745,2]
[367259092,1750720276854,-812.47476004,0.00022745,2]
[367259093,1750720276863,-150.0,0.00022748,2]
[367259094,1750720276873,-7546.49043323,0.00022749,2]
[367259095,1750720276882,-4146.11680467,0.00022756,2]
[367259096,1750720276892,-16379.93529367,0.00022757,2]
[367259097,1750720276905,-150.0,0.00022759,2]
[367259098,1750720276915,-7546.49043323,0.00022761,2]
[367259099,1750720276924,-21159.18941329,0.00022765,2]
[367259100,1750720276936,-500.0,0.00022766,2]
[367259101,1750720276947,-150.0,0.00022766,2]
[367259102,1750720276956,-500.0,0.00022766,2]
[367259103,1750720276966,-239.23764832,0.00022766,2]
[367259104,1750720276976,-500.0,0.00022766,2]
[367259105,1750720276986,-150.0,0.00022766,2]
[367259106,1750720276996,-500.0,0.00022766,2]
[367259107,1750720277006,-508.46205092,0.00022766,2]
[367259108,1750720277016,-500.0,0.00022766,2]
[367259109,1750720277026,-500.0,0.00022766,2]
[367259110,1750720277035,-500.0,0.00022766,2]
[367259111,1750720277045,-150.0,0.00022766,2]
[367259112,1750720277054,-500.0,0.00022766,2]
[367259113,1750720277064,-500.0,0.00022766,2]
[367259114,1750720277074,-150.0,0.00022766,2]
[367259115,1750720277084,-500.0,0.00022766,2]
[367259116,1750720277093,-150.0,0.00022766,2]
[367259117,1750720277104,-500.0,0.00022766,2]
[367259118,1750720277114,-150.0,0.00022766,2]
[367259119,1750720277123,-215.47703538,0.00022766,2]
[367259120,1750720277133,-153.07957135,0.00022766,2]
[367259121,1750720277143,-500.0,0.00022766,2]
[367259122,1750720277155,-500.0,0.00022766,2]
[367259123,1750720277164,-500.0,0.00022766,2]
[367259124,1750720277173,-199.04424044,0.00022766,2]
[367259125,1750720277183,-500.68412876,0.00022766,2]
[367259126,1750720277192,-500.0,0.00022766,2]
[367259127,1750720277201,-150.0,0.00022766,2]
[367259128,1750720277211,-500.0,0.00022766,2]
[367259129,1750720277221,-500.0,0.00022766,2]
[367259130,1750720277230,-150.0,0.00022766,2]
[367259131,1750720277241,-150.0,0.00022766,2]
[367259132,1750720277251,-500.0,0.00022766,2]
[367259133,1750720277260,-594.51788817,0.00022766,2]
[367259134,1750720277270,-150.0,0.00022766,2]
[367259135,1750720277281,-150.0,0.00022766,2]
[367259136,1750720277291,-16379.93529367,0.00022767,2]
[367259137,1750720277301,-812.47476004,0.00022769,2]
[367259138,1750720277311,-654.21829306,0.00022769,2]
[367259139,1750720277321,-150.0,0.00022774,2]
[367259140,1750720277331,-11448.8201278,0.00022775,2]
[367259141,1750720277341,-150.0,0.00022776,2]
[367259142,1750720277351,-16379.93529367,0.00022783,2]
[367259143,1750720277360,-4146.11680467,0.00022786,2]
[367259144,1750720277370,-361.24,0.00022786,2]
[367259145,1750720277379,-7546.49043323,0.00022787,2]
[367259146,1750720277389,-11448.8201278,0.00022789,2]
[367259147,1750720277400,-3032.9482599,0.00022793,2]
[367259148,1750720277409,-500.0,0.00022794,2]
[367259149,1750720277419,-150.0,0.00022794,2]
[367259150,1750720277428,-500.0,0.00022794,2]
[367259151,1750720277437,-500.0,0.00022794,2]
[367259152,1750720277446,-151.2407853,0.00022794,2]
[367259153,1750720277456,-500.0,0.00022794,2]
[367259154,1750720277465,-500.0,0.00022794,2]
[367259155,1750720277474,-500.0,0.00022794,2]
[367259156,1750720277484,-603.96467875,0.00022794,2]
[367259157,1750720277493,-153.71729806,0.00022794,2]
[367259158,1750720277502,-500.0,0.00022794,2]
[367259159,1750720277511,-500.0,0.00022794,2]
[367259160,1750720277520,-150.0,0.00022794,2]
[367259161,1750720277529,-303.16874331,0.00022794,2]
[367259162,1750720277538,-210.65516095,0.00022794,2]
[367259163,1750720277548,-500.0,0.00022794,2]
[367259164,1750720277557,-150.0,0.00022794,2]
[367259165,1750720277567,-174.47162094,0.00022794,2]
[367259166,1750720277577,-342.11707165,0.00022794,2]
[367259167,1750720277586,-500.0,0.00022794,2]
[367259168,1750720277595,-300.0,0.00022794,2]
[367259169,1750720277605,-150.0,0.00022794,2]
[367259170,1750720277614,-500.0,0.00022794,2]
[367259171,1750720277624,-500.0,0.00022794,2]
[367259172,1750720277633,-212.7061915,0.00022794,2]
[367259173,1750720277642,-151.72161984,0.00022794,2]
[367259174,1750720277652,-500.0,0.00022794,2]
[367259175,1750720277662,-150.0,0.00022794,2]
[367259176,1750720277671,-150.0,0.00022794,2]
[367259177,1750720277679,-1978.18098776,0.00022797,2]
[367259178,1750720277689,-654.21829306,0.000228,2]
[367259179,1750720277698,-2381.1276473,0.000228,4]
[367259180,1750720277707,-7584.39,0.000228,2]
[367259181,1750720277717,-2031.372575,0.000228,2]
[367259182,1750720277726,-150.0,0.000228,2]
[367259183,1750720277735,-230.45,0.000228,7]
[367259184,1750720277744,-2285.01,0.000228,2]
[367259185,1750720277754,-150.0,0.00022806,2]
[367259186,1750720277763,-1978.18098776,0.00022808,2]
[367259187,1750720277772,-4146.11680467,0.00022809,2]
[367259188,1750720277781,-1000.0,0.00022814,2]
[367259189,1750720277791,-16379.93529367,0.00022815,2]
[367259190,1750720277800,-150.0,0.00022817,2]
[367259191,1750720277809,-150.0,0.0002282,2]
[367259192,1750720277818,-206.27812824,0.00022821,2]
[367259193,1750720277827,-150.0,0.00022821,2]
[367259194,1750720277837,-500.0,0.00022821,2]
[367259195,1750720277846,-500.0,0.00022821,2]
[367259196,1750720277855,-500.0,0.00022821,2]
[367259197,1750720277864,-500.0,0.00022821,2]
[367259198,1750720277874,-500.0,0.00022821,2]
[367259199,1750720277883,-500.0,0.00022821,2]
[367259200,1750720277892,-509.04695676,0.00022821,2]
[367259201,1750720277903,-152.53157968,0.00022821,2]
[367259202,1750720277913,-500.0,0.00022821,2]
[367259203,1750720277922,-195.69895129,0.00022821,2]
[367259204,1750720277931,-501.92414829,0.00022821,2]
[367259205,1750720277943,-166.95679221,0.00022821,2]
[367259206,1750720277952,-500.0,0.00022821,2]
[367259207,1750720277962,-302.36129977,0.00022821,2]
[367259208,1750720277971,-500.0,0.00022821,2]
[367259209,1750720277981,-155.2209032,0.00022821,2]
[367259210,1750720277990,-178.46260844,0.00022821,2]
[367259211,1750720278000,-7546.49043323,0.00022822,2]
[367259212,1750720278009,-151.0,0.00022822,7]
[367259213,1750720278019,-150.0,0.00022825,2]
[367259214,1750720278029,-4146.11680467,0.00022829,2]
[367259215,1750720278038,-654.21829306,0.00022832,2]
[367259216,1750720278048,-812.47476004,0.00022837,2]
[367259217,1750720278057,-150.0,0.00022839,2]
[367259218,1750720278067,-1978.18098776,0.00022839,2]
[367259219,1750720278076,-150.0,0.0002284,2]
[367259220,1750720278085,-159.93594984,0.00022842,2]
[367259221,1750720278094,-150.0,0.00022842,2]
[367259222,1750720278104,-150.0,0.00022844,2]
[367259223,1750720278113,-8638.16279879,0.00022847,2]
[367259224,1750720278122,-151.0,0.00022848,7]
[367259225,1750720278132,-253.15924538,0.00022849,2]
[367259226,1750720278141,-500.0,0.00022849,2]
[367259227,1750720278150,-410.67802328,0.00022849,2]
[367259228,1750720278159,-500.0,0.00022849,2]
[367259229,1750720278169,-500.0,0.00022849,2]
[367259230,1750720278178,-500.0,0.00022849,2]
[367259231,1750720278187,-210.45882457,0.00022849,2]
[367259232,1750720278197,-500.0,0.00022849,2]
[367259233,1750720278206,-500.0,0.00022849,2]
[367259234,1750720278216,-316.83189623,0.00022849,2]
[367259235,1750720278225,-21159.18941329,0.00022849,2]
[367259236,1750720278234,-150.0,0.0002285,2]
[367259237,1750720278243,-150.0,0.00022854,2]
[367259238,1750720278252,-150.0,0.00022856,2]
[367259239,1750720278261,-156.587,0.00022857,2]
[367259240,1750720278272,-693.3919763,0.00022857,2]
[367259241,1750720278282,-215.0738,0.00022857,2]
[367259242,1750720278293,-1080.18834325,0.00022861,2]
[367259243,1750720278303,-654.21829306,0.00022868,2]
[367259244,1750720278312,-11448.8201278,0.0002287,2]
[367259245,1750720278321,-150.0,0.0002287,2]
[367259246,1750720278331,-150.0,0.00022871,2]
[367259247,1750720278339,-150.0,0.00022875,2]
[367259248,1750720278349,-4146.11680467,0.00022875,2]
[367259249,1750720278359,-500.0,0.00022876,2]
[367259250,1750720278368,-500.0,0.00022876,2]
[367259251,1750720278379,-500.0,0.00022876,2]
[367259252,1750720278389,-500.0,0.00022876,2]
[367259253,1750720278398,-391.74077502,0.00022876,2]
[367259254,1750720278409,-500.0,0.00022876,2]
[367259255,1750720278418,-150.0,0.00022876,2]
[367259256,1750720278428,-150.0,0.00022877,2]
[367259257,1750720278437,-21159.18941329,0.00022877,2]
[367259258,1750720278446,-1000.0,0.00022879,2]
[367259259,1750720278455,-8496.41488607,0.0002288,2]
[367259260,1750720278464,-96129.4256337,0.00022881,2]
[367259261,1750720278475,-13469.9642542,0.00022881,2]
[367259262,1750720278484,-151.95333062,0.00022886,2]
[367259263,1750720278493,-150.0,0.00022892,2]
[367259264,1750720278503,-21159.18941329,0.00022894,2]
[367259265,1750720278513,-1978.18098776,0.00022895,2]
[367259266,1750720278523,-7546.49043323,0.00022896,2]
[367259267,1750720278532,-812.47476004,0.00022897,2]
[367259268,1750720278541,-150.0,0.00022897,2]
[367259269,1750720278550,-38016.621803,0.00022897,2]
[367259270,1750720278559,-812.47476004,0.00022899,2]
[367259271,1750720278569,-2300.0,0.000229,8]
[367259272,1750720278579,-294.0,0.00022903,2]
[367259273,1750720278588,-500.0,0.00022903,2]
[367259274,1750720278598,-1195.6820677,0.00022904,2]
[367259275,1750720278608,-171.95862538,0.00022913,2]
[367259276,1750720278617,-29062.72752478,0.00022913,2]
[367259277,1750720278627,-184.67741779,0.00022913,4]
[367259278,1750720278638,-158.11767542,0.00022913,2]
[367259279,1750720278647,-150.0,0.00022917,2]
[367259280,1750720278659,-706.0,0.00022922,2]
[367259281,1750720278668,-635.0,0.00022926,2]
[367259282,1750720278677,-150.0,0.00022928,2]
[367259283,1750720278687,-500.0,0.00022931,2]
[367259284,1750720278697,-150.0,0.00022941,2]
[367259285,1750720278707,-150.0,0.00022944,2]
[367259286,1750720278716,-1100.0,0.00022947,2]
[367259287,1750720278726,-500.0,0.00022947,2]
[367259288,1750720278735,-150.0,0.00022952,2]
[367259289,1750720278745,-150.0,0.00022956,2]
[367259290,1750720278755,-500.0,0.00022958,2]
[367259291,1750720278765,-150.0,0.00022959,2]
[367259292,1750720278775,-150.0,0.0002296,2]
[367259293,1750720278784,-150.0,0.00022965,2]
[367259294,1750720278794,-150.0,0.00022979,2]
[367259295,1750720278803,-500.0,0.00022986,2]
[367259296,1750720278813,-162.024052,0.00022998,14]
[367259297,1750720278823,-162.024052,0.00022998,14]
[367259298,1750720278832,-2000.0,0.00023,2]
[367259299,1750720278843,-195.0,0.00023,2]
[367259300,1750720278852,-4087.0129059,0.00023004,2]
[367259301,1750720278862,-2692.2829775,0.00023004,2]
[367259302,1750720278872,-180.0,0.00023006,2]
[367259303,1750720278882,-2000.0,0.0002301,2]
[367259304,1750720278891,-500.0,0.00023012,2]
[367259305,1750720278902,-299.07677208,0.00023012,2]
[367259306,1750720278915,-196.13400092,0.00023013,2]
[367259307,1750720278924,-1831.946697,0.00023013,2]
[367259308,1750720278934,-587.704015,0.00023013,2]
[367259309,1750720278946,-490.0,0.00023013,2]
[367259310,1750720278956,-490.0,0.00023013,2]
[367259311,1750720278966,-490.0,0.00023013,2]
[367259312,1750720278976,-490.0,0.00023013,2]
[367259313,1750720278987,-490.0,0.00023013,2]
[367259314,1750720278998,-563.59,0.00023013,2]
[367259315,1750720279007,-490.0,0.00023013,2]
[367259316,1750720279017,-743.16,0.00023013,2]
[367259317,1750720279028,-646.68,0.00023013,2]
[367259318,1750720279038,-490.0,0.00023013,2]
[367259319,1750720279047,-490.0,0.00023013,2]
[367259320,1750720279057,-603.39,0.00023013,2]
[367259321,1750720279066,-490.0,0.00023013,2]
[367259322,1750720279076,-557.33,0.00023013,2]
[367259323,1750720279086,-490.0,0.00023013,2]
[367259324,1750720279096,-490.0,0.00023013,2]
[367259325,1750720279106,-518.87,0.00023013,2]
[367259326,1750720279117,-490.0,0.00023013,2]
[367259327,1750720279126,-490.0,0.00023013,2]
[367259328,1750720279136,-490.0,0.00023013,2]
[367259329,1750720279146,-490.0,0.00023013,2]
[367259330,1750720279158,-584.66,0.00023013,2]
[367259331,1750720279167,-590.15,0.00023013,2]
[367259332,1750720279178,-490.0,0.00023013,2]
[367259333,1750720279189,-780.22,0.00023013,2]
[367259334,1750720279198,-490.0,0.00023013,2]
[367259335,1750720279208,-490.0,0.00023013,2]
[367259336,1750720279218,-528.35,0.00023013,2]
[367259337,1750720279228,-594.06,0.00023013,2]
[367259338,1750720279238,-490.0,0.00023013,2]
[367259339,1750720279248,-566.03,0.00023013,2]
[367259340,1750720279257,-490.0,0.00023013,2]
[367259341,1750720279267,-490.0,0.00023013,2]
[367259342,1750720279276,-300.0,0.00023013,2]
[367259343,1750720279286,-490.0,0.00023013,2]
[367259344,1750720279296,-724.91,0.00023013,2]
[367259345,1750720279305,-490.0,0.00023013,2]
[367259346,1750720279315,-630.84,0.00023013,2]
[367259347,1750720279324,-490.0,0.00023013,2]
[367259348,1750720279334,-490.0,0.00023013,2]
[367259349,1750720279344,-524.88,0.00023013,2]
[367259350,1750720279354,-529.3426962,0.00023013,2]
[367259351,1750720279363,-490.0,0.00023013,2]
[367259352,1750720279374,-490.0,0.00023013,2]
[367259353,1750720279384,-490.0,0.00023013,2]
[367259354,1750720279393,-490.0,0.00023013,2]
[367259355,1750720279403,-490.0,0.00023013,2]
[367259356,1750720279413,-490.0,0.00023013,2]
[367259357,1750720279423,-490.0,0.00023013,2]
[367259358,1750720279433,-589.97,0.00023013,2]
[367259359,1750720279443,-490.0,0.00023013,2]
[367259360,1750720279453,-490.0,0.00023013,2]
[367259361,1750720279463,-547.65572452,0.00023013,2]
[367259362,1750720279474,-490.0,0.00023013,2]
[367259363,1750720279484,-167.34547795,0.00023013,2]
[367259364,1750720279494,-743.05,0.00023013,2]
[367259365,1750720279504,-490.0,0.00023013,2]
[367259366,1750720279514,-538.01,0.00023013,2]
[367259367,1750720279524,-693.79,0.00023013,2]
[367259368,1750720279534,-490.0,0.00023013,2]
[367259369,1750720279543,-490.0,0.00023013,2]
[367259370,1750720279553,-490.0,0.00023013,2]
[367259371,1750720279563,-490.0,0.00023013,2]
[367259372,1750720279572,-490.0,0.00023013,2]
[367259373,1750720279582,-793.15,0.00023013,2]
[367259374,1750720279591,-608.3,0.00023013,2]
[367259375,1750720279601,-250.0,0.00023013,2]
[367259376,1750720279610,-610.99,0.00023013,2]
[367259377,1750720279620,-490.0,0.00023013,2]
[367259378,1750720279629,-490.0,0.00023013,2]
[367259379,1750720279639,-698.55,0.00023013,2]
[367259380,1750720279649,-500.02,0.00023013,2]
[367259381,1750720279660,-490.0,0.00023013,2]
[367259382,1750720279670,-917.55,0.00023013,2]
[367259383,1750720279680,-812.47,0.00023013,2]
[367259384,1750720279690,-490.0,0.00023013,2]
[367259385,1750720279699,-637.003955,0.00023013,2]
[367259386,1750720279709,-490.0,0.00023013,2]
[367259387,1750720279719,-490.0,0.00023013,2]
[367259388,1750720279729,-759.24,0.00023013,2]
[367259389,1750720279739,-545.58,0.00023013,2]
[367259390,1750720279748,-840.98,0.00023013,2]
[367259391,1750720279758,-490.0,0.00023013,2]
[367259392,1750720279767,-1083.75,0.00023013,2]
[367259393,1750720279777,-490.0,0.00023013,2]
[367259394,1750720279786,-490.0,0.00023013,2]
[367259395,1750720279796,-676.91,0.00023013,2]
[367259396,1750720279806,-827.47,0.00023013,2]
[367259397,1750720279816,-490.0,0.00023013,2]
[367259398,1750720279825,-554.99,0.00023013,2]
[367259399,1750720279835,-628.72,0.00023013,2]
[367259400,1750720279845,-1200.9,0.00023013,2]
[367259401,1750720279855,-574.5,0.00023013,2]
[367259402,1750720279865,-622.34,0.00023013,2]
[367259403,1750720279875,-510.98483115,0.00023013,2]
[367259404,1750720279884,-490.0,0.00023013,2]
[367259405,1750720279894,-490.0,0.00023013,2]
[367259406,1750720279906,-538.21,0.00023013,2]
[367259407,1750720279916,-971.79,0.00023013,2]
[367259408,1750720279927,-490.0,0.00023013,2]
[367259409,1750720279937,-1028.56,0.00023013,2]
[367259410,1750720279951,-490.0,0.00023013,2]
[367259411,1750720279961,-490.0,0.00023013,2]
[367259412,1750720279971,-490.0,0.00023013,2]
[367259413,1750720279981,-490.0,0.00023013,2]
[367259414,1750720279991,-490.0,0.00023013,2]
[367259415,1750720280001,-545.47,0.00023013,2]
[367259416,1750720280011,-1263.38,0.00023013,2]
[367259417,1750720280021,-505.37,0.00023013,2]
[367259418,1750720280031,-490.0,0.00023013,2]
[367259419,1750720280041,-688.47,0.00023013,2]
[367259420,1750720280051,-816.17,0.00023013,2]
[367259421,1750720280061,-536.41777761,0.00023013,2]
[367259422,1750720280071,-610.98,0.00023013,2]
[367259423,1750720280080,-490.0,0.00023013,2]
[367259424,1750720280090,-511.19,0.00023013,2]
[367259425,1750720280100,-756.92,0.00023013,2]
[367259426,1750720280110,-1422.61,0.00023013,2]
[367259427,1750720280119,-490.0,0.00023013,2]
[367259428,1750720280129,-712.06,0.00023013,2]
[367259429,1750720280139,-544.78,0.00023013,2]
[367259430,1750720280149,-797.95,0.00023013,2]
[367259431,1750720280163,-798.42,0.00023013,2]
[367259432,1750720280172,-490.0,0.00023013,2]
[367259433,1750720280182,-490.0,0.00023013,2]
[367259434,1750720280191,-490.0,0.00023013,2]
[367259435,1750720280200,-948.64,0.00023013,2]
[367259436,1750720280210,-723.12,0.00023013,2]
[367259437,1750720280219,-490.0,0.00023013,2]
[367259438,1750720280229,-490.0,0.00023013,2]
[367259439,1750720280238,-490.0,0.00023013,2]
[367259440,1750720280247,-490.0,0.00023013,2]
[367259441,1750720280257,-490.0,0.00023013,2]
[367259442,1750720280267,-547.15,0.00023013,2]
[367259443,1750720280277,-490.0,0.00023013,2]
[367259444,1750720280287,-490.0,0.00023013,2]
[367259445,1750720280299,-664.8,0.00023013,2]
[367259446,1750720280308,-490.0,0.00023013,2]
[367259447,1750720280319,-270.4151425,0.00023013,2]
[367259448,1750720280330,-494.01,0.00023013,2]
[367259449,1750720280340,-490.0,0.00023013,2]
[367259450,1750720280349,-765.15,0.00023013,2]
[367259451,1750720280359,-498.85,0.00023013,2]
[367259452,1750720280369,-490.0,0.00023013,2]
[367259453,1750720280378,-490.0,0.00023013,2]
[367259454,1750720280387,-490.0,0.00023013,2]
[367259455,1750720280397,-490.0,0.00023013,2]
[367259456,1750720280409,-603.64,0.00023013,2]
[367259457,1750720280419,-1024.07,0.00023013,2]
[367259458,1750720280428,-490.0,0.00023013,2]
[367259459,1750720280437,-1147.26,0.00023013,2]
[367259460,1750720280447,-490.0,0.00023013,2]
[367259461,1750720280456,-490.0,0.00023013,2]
[367259462,1750720280466,-490.0,0.00023013,2]
[367259463,1750720280476,-1295.03,0.00023013,2]
[367259464,1750720280485,-1174.91,0.00023013,2]
[367259465,1750720280496,-490.0,0.00023013,2]
[367259466,1750720280505,-1105.76,0.00023013,2]
[367259467,1750720280515,-490.0,0.00023013,2]
[367259468,1750720280525,-490.0,0.00023013,2]
[367259469,1750720280535,-850.78,0.00023013,2]
[367259470,1750720280545,-490.0,0.00023013,2]
[367259471,1750720280554,-490.0,0.00023013,2]
[367259472,1750720280564,-602.16,0.00023013,2]
[367259473,1750720280574,-490.0,0.00023013,2]
[367259474,1750720280584,-209.4,0.00023013,2]
[367259475,1750720280594,-490.0,0.00023013,2]
[367259476,1750720280603,-490.0,0.00023013,2]
[367259477,1750720280614,-670.97,0.00023013,2]
[367259478,1750720280624,-1125.48,0.00023013,2]
[367259479,1750720280877,-490.0,0.00023013,2]
[367259480,1750720280893,-1015.98,0.00023013,2]
[367259481,1750720280904,-490.0,0.00023013,2]
[367259482,1750720280914,-896.78,0.00023013,2]
[367259483,1750720280923,-991.79,0.00023013,2]
[367259484,1750720280933,-490.0,0.00023013,2]
[367259485,1750720280945,-490.0,0.00023013,2]
[367259486,1750720280955,-490.0,0.00023013,2]
[367259487,1750720280965,-617.71,0.00023013,2]
[367259488,1750720280975,-490.0,0.00023013,2]
[367259489,1750720280986,-490.0,0.00023013,2]
[367259490,1750720280996,-663.55,0.00023013,2]
[367259491,1750720281006,-490.0,0.00023013,2]
[367259492,1750720281016,-753.16,0.00023013,2]
[367259493,1750720281026,-1169.56,0.00023013,2]
[367259494,1750720281036,-516.74854936,0.00023013,2]
[367259495,1750720281047,-490.0,0.00023013,2]
[367259496,1750720281056,-798.85,0.00023013,2]
[367259497,1750720281066,-816.02,0.00023013,2]
[367259498,1750720281075,-1226.43,0.00023013,2]
[367259499,1750720281085,-1692.03,0.00023013,2]
[367259500,1750720281094,-490.0,0.00023013,2]
[367259501,1750720281103,-743.41,0.00023013,2]
[367259502,1750720281113,-490.0,0.00023013,2]
[367259503,1750720281122,-490.0,0.00023013,2]
[367259504,1750720281132,-490.0,0.00023013,2]
[367259505,1750720281141,-1035.5,0.00023013,2]
[367259506,1750720281151,-1428.24,0.00023013,2]
[367259507,1750720281163,-468.68329171,0.00023013,2]
[367259508,1750720281173,-578.07,0.00023013,2]
[367259509,1750720281182,-490.0,0.00023013,2]
[367259510,1750720281192,-490.0,0.00023013,2]
[367259511,1750720281202,-1560.27,0.00023013,2]
[367259512,1750720281211,-490.0,0.00023013,2]
[367259513,1750720281221,-490.0,0.00023013,2]
[367259514,1750720281231,-1138.31,0.00023013,2]
[367259515,1750720281241,-490.0,0.00023013,2]
[367259516,1750720281251,-490.0,0.00023013,2]
[367259517,1750720281261,-490.0,0.00023013,2]
[367259518,1750720281271,-490.0,0.00023013,2]
[367259519,1750720281280,-610.23,0.00023013,2]
[367259520,1750720281291,-490.0,0.00023013,2]
[367259521,1750720281303,-490.0,0.00023013,2]
[367259522,1750720281312,-1540.72,0.00023013,2]
[367259523,1750720281322,-490.0,0.00023013,2]
[367259524,1750720281331,-956.42,0.00023013,2]
[367259525,1750720281341,-490.0,0.00023013,2]
[367259526,1750720281350,-490.0,0.00023013,2]
[367259527,1750720281359,-755.88,0.00023013,2]
[367259528,1750720281369,-490.0,0.00023013,2]
[367259529,1750720281379,-510.44,0.00023013,2]
[367259530,1750720281389,-490.0,0.00023013,2]
[367259531,1750720281399,-490.0,0.00023013,2]
[367259532,1750720281410,-490.0,0.00023013,2]
[367259533,1750720281420,-643.85,0.00023013,2]
[367259534,1750720281429,-599.74,0.00023013,2]
[367259535,1750720281439,-490.0,0.00023013,2]
[367259536,1750720281448,-710.51,0.00023013,2]
[367259537,1750720281458,-490.0,0.00023013,2]
[367259538,1750720281467,-490.0,0.00023013,2]
[367259539,1750720281477,-749.42,0.00023013,2]
[367259540,1750720281487,-490.0,0.00023013,2]
[367259541,1750720281498,-490.0,0.00023013,2]
[367259542,1750720281508,-917.23,0.00023013,2]
[367259543,1750720281519,-599.32,0.00023013,2]
[367259544,1750720281528,-490.0,0.00023013,2]
[367259545,1750720281538,-720.89,0.00023013,2]
[367259546,1750720281548,-664.28,0.00023013,2]
[367259547,1750720281557,-1380.1,0.00023013,2]
[367259548,1750720281567,-490.0,0.00023013,2]
[367259549,1750720281576,-912.94,0.00023013,2]
[367259550,1750720281586,-490.0,0.00023013,2]
[367259551,1750720281595,-490.0,0.00023013,2]
[367259552,1750720281605,-550.00298783,0.00023013,2]
[367259553,1750720281614,-583.16,0.00023013,2]
[367259554,1750720281624,-1214.44,0.00023013,2]